fUST/lending_fUST_20250206
["ID","MTS","AMOUNT","RATE_DAILY","PERIOD"]
[351902224,1738833039068,-500.0,0.00013698,2]
[351902226,1738833039077,-500.0,0.00013698,2]
[351902227,1738833039086,-500.0,0.00013698,2]
[351902229,1738833039096,-500.0,0.00013698,2]
[351902231,1738833039105,-500.0,0.00013698,2]
[351902233,1738833039115,-500.0,0.00013698,2]
[351902235,1738833039124,-500.0,0.00013698,2]
[351902237,1738833039134,-500.0,0.00013698,2]
[351902239,1738833039144,-500.0,0.00013698,2]
[351902241,1738833039154,-500.0,0.00013698,2]
[351902243,1738833039164,-785.12,0.00013698,2]
[351902245,1738833039174,-500.0,0.00013698,2]
[351902247,1738833039184,-500.0,0.00013698,2]
[351902249,1738833039193,-500.0,0.00013698,2]
[351902251,1738833039203,-1246.55,0.00013698,2]
[351902253,1738833039212,-500.0,0.00013698,2]
[351902255,1738833039223,-500.0,0.00013698,2]
[351902257,1738833039232,-500.0,0.00013698,2]
[351902259,1738833039242,-500.0,0.00013698,2]
[351902261,1738833039251,-500.0,0.00013698,2]
[351902263,1738833039261,-272.9783568,0.00013698,2]
[351902265,1738833039274,-500.0,0.00013698,2]
[351902267,1738833039285,-500.0,0.00013698,2]
[351902269,1738833039295,-500.0,0.00013698,2]
[351902271,1738833039304,-535.66,0.00013698,2]
[351902273,1738833039315,-500.0,0.00013698,2]
[351902275,1738833039326,-500.0,0.00013698,2]
[351902277,1738833039336,-500.0,0.00013698,2]
[351902279,1738833039347,-500.0,0.00013698,2]
[351902281,1738833039357,-1281.54,0.00013698,2]
[351902283,1738833039369,-500.0,0.00013698,2]
[351902285,1738833039379,-500.0,0.00013698,2]
[351902287,1738833039388,-500.0,0.00013698,2]
[351902289,1738833039397,-500.0,0.00013698,2]
[351902291,1738833039407,-292.16768748,0.00013698,2]
[351902294,1738833039417,-500.0,0.00013698,2]
[351902296,1738833039427,-500.0,0.00013698,2]
[351902298,1738833039437,-500.0,0.00013698,2]
[351902300,1738833039446,-937.21,0.00013698,2]
[351902302,1738833039455,-574.09,0.00013698,2]
[351902304,1738833039464,-500.0,0.00013698,2]
[351902306,1738833039474,-500.0,0.00013698,2]
[351902308,1738833039483,-500.0,0.00013698,2]
[351902310,1738833039493,-551.09,0.00013698,2]
[351902312,1738833039502,-500.0,0.00013698,2]
[351902313,1738833039512,-512.72,0.00013698,2]
[351902314,1738833039524,-500.0,0.00013698,2]
[351902315,1738833039535,-500.0,0.00013698,2]
[351902316,1738833039547,-500.0,0.00013698,2]
[351902318,1738833039557,-500.0,0.00013698,2]
[351902320,1738833039567,-500.0,0.00013698,2]
[351902322,1738833039577,-500.0,0.00013698,2]
[351902324,1738833039587,-500.0,0.00013698,2]
[351902326,1738833039597,-500.0,0.00013698,2]
[351902329,1738833039607,-500.0,0.00013698,2]
[351902332,1738833039619,-500.0,0.00013698,2]
[351902335,1738833039628,-730.03,0.00013698,2]
[351902337,1738833039638,-500.0,0.00013698,2]
[351902339,1738833039647,-500.0,0.00013698,2]
[351902342,1738833039657,-500.0,0.00013698,2]
[351902344,1738833039667,-1183.53,0.00013698,2]
[351902347,1738833039676,-1732.17,0.00013698,2]
[351902349,1738833039685,-500.0,0.00013698,2]
[351902351,1738833039695,-500.0,0.00013698,2]
[351902353,1738833039705,-500.0,0.00013698,2]
[351902356,1738833039715,-500.0,0.00013698,2]
[351902357,1738833039724,-681.46,0.00013698,2]
[351902359,1738833039734,-344.99068736,0.00013698,2]
[351902360,1738833039743,-500.0,0.00013698,2]
[351902361,1738833039753,-1080.42,0.00013698,2]
[351902362,1738833039763,-500.0,0.00013698,2]
[351902363,1738833039774,-500.0,0.00013698,2]
[351902364,1738833039784,-500.0,0.00013698,2]
[351902365,1738833039793,-500.0,0.00013698,2]
[351902366,1738833039803,-500.0,0.00013698,2]
[351902367,1738833039813,-35872.88,0.00013698,2]
[351902368,1738833039822,-500.0,0.00013698,2]
[351902369,1738833039832,-500.0,0.00013698,2]
[351902370,1738833039841,-500.0,0.00013698,2]
[351902371,1738833039852,-500.0,0.00013698,2]
[351902372,1738833039861,-14650.96,0.00013698,2]
[351902373,1738833039871,-500.0,0.00013698,2]
[351902374,1738833039880,-500.0,0.00013698,2]
[351902375,1738833039890,-1410.09,0.00013698,2]
[351902376,1738833039899,-5062.88,0.00013698,2]
[351902377,1738833039908,-1133.82,0.00013698,2]
[351902378,1738833039917,-500.0,0.00013698,2]
[351902379,1738833039927,-1861.9,0.00013698,2]
[351902380,1738833039935,-3452.74,0.00013698,2]
[351902381,1738833039944,-500.0,0.00013698,2]
[351902382,1738833039953,-1496.04,0.00013698,2]
[351902383,1738833039962,-501.0,0.00013698,2]
[351902384,1738833039970,-500.0,0.00013698,2]
[351902385,1738833039979,-732.12,0.00013698,2]
[351902386,1738833039987,-1819.26,0.00013698,2]
[351902387,1738833039995,-500.0,0.00013698,2]
[351902388,1738833040004,-500.0,0.00013698,2]
[351902389,1738833040012,-1746.2,0.00013698,2]
[351902390,1738833040023,-1155.84,0.00013698,2]
[351902391,1738833040032,-500.0,0.00013698,2]
[351902392,1738833040041,-500.0,0.00013698,2]
[351902393,1738833040050,-500.0,0.00013698,2]
[351902394,1738833040059,-500.0,0.00013698,2]
[351902395,1738833040069,-839.56,0.00013698,2]
[351902396,1738833040079,-500.0,0.00013698,2]
[351902397,1738833040088,-520.1,0.00013698,2]
[351902398,1738833040097,-500.0,0.00013698,2]
[351902399,1738833040107,-500.0,0.00013698,2]
[351902400,1738833040116,-633.72,0.00013698,2]
[351902401,1738833040126,-1364.39,0.00013698,2]
[351902402,1738833040135,-500.0,0.00013698,2]
[351902403,1738833040145,-500.0,0.00013698,2]
[351902404,1738833040158,-500.0,0.00013698,2]
[351902405,1738833040167,-500.0,0.00013698,2]
[351902406,1738833040177,-500.0,0.00013698,2]
[351902407,1738833040186,-2017.46,0.00013698,2]
[351902408,1738833040196,-500.0,0.00013698,2]
[351902409,1738833040206,-500.0,0.00013698,2]
[351902410,1738833040216,-188.39081049,0.00013698,2]
[351902411,1738833040225,-607.83,0.00013698,2]
[351902412,1738833040235,-500.0,0.00013698,2]
[351902413,1738833040245,-500.0,0.00013698,2]
[351902414,1738833040254,-2631.99,0.00013698,2]
[351902415,1738833040264,-8241.48,0.00013698,2]
[351902416,1738833040276,-500.0,0.00013698,2]
[351902417,1738833040286,-500.0,0.00013698,2]
[351902418,1738833040295,-500.0,0.00013698,2]
[351902419,1738833040306,-1516.77,0.00013698,2]
[351902420,1738833040315,-500.0,0.00013698,2]
[351902421,1738833040324,-500.0,0.00013698,2]
[351902423,1738833040334,-3042.29,0.00013698,2]
[351902425,1738833040344,-500.0,0.00013698,2]
[351902427,1738833040353,-3774.71,0.00013698,2]
[351902429,1738833040363,-500.0,0.00013698,2]
[351902431,1738833040372,-500.0,0.00013698,2]
[351902433,1738833040381,-646.7,0.00013698,2]
[351902435,1738833040390,-2714.94,0.00013698,2]
[351902437,1738833040400,-521.09563371,0.00013698,2]
[351902439,1738833040410,-687.46,0.00013698,2]
[351902441,1738833040419,-1212.68,0.00013698,2]
[351902443,1738833040429,-500.0,0.00013698,2]
[351902445,1738833040439,-500.0,0.00013698,2]
[351902448,1738833040448,-500.0,0.00013698,2]
[351902450,1738833040459,-500.0,0.00013698,2]
[351902452,1738833040468,-500.0,0.00013698,2]
[351902454,1738833040477,-500.0,0.00013698,2]
[351902456,1738833040486,-1500.65,0.00013698,2]
[351902458,1738833040496,-500.0,0.00013698,2]
[351902460,1738833040505,-1456.61,0.00013698,2]
[351902462,1738833040514,-500.0,0.00013698,2]
[351902464,1738833040525,-500.0,0.00013698,2]
[351902466,1738833040537,-500.0,0.00013698,2]
[351902468,1738833040546,-1058.45,0.00013698,2]
[351902470,1738833040555,-500.0,0.00013698,2]
[351902472,1738833040564,-489.87987051,0.00013698,2]
[351902474,1738833040575,-500.0,0.00013698,2]
[351902476,1738833040583,-500.0,0.00013698,2]
[351902496,1738833040762,-669.86,0.00013698,2]
[351902498,1738833040773,-500.0,0.00013698,2]
[351902500,1738833040783,-698.27,0.00013698,2]
[351902502,1738833040792,-11989.68,0.00013698,2]
[351902504,1738833040802,-500.0,0.00013698,2]
[351902506,1738833040811,-500.0,0.00013698,2]
[351902508,1738833040821,-584.21,0.00013698,2]
[351902510,1738833040830,-708.6,0.00013698,2]
[351902512,1738833040840,-500.0,0.00013698,2]
[351902514,1738833040849,-500.0,0.00013698,2]
[351902516,1738833040858,-500.0,0.00013698,2]
[351902518,1738833040868,-500.0,0.00013698,2]
[351902520,1738833040877,-1222.01,0.00013698,2]
[351902522,1738833040886,-642.47,0.00013698,2]
[351902524,1738833040895,-500.0,0.00013698,2]
[351902526,1738833040904,-980.3,0.00013698,2]
[351902528,1738833040914,-505.33094631,0.00013698,2]
[351902530,1738833040923,-500.0,0.00013698,2]
[351902532,1738833040933,-500.0,0.00013698,2]
[351902534,1738833040943,-2948.63,0.00013698,2]
[351902536,1738833040952,-562.56,0.00013698,2]
[351902538,1738833040962,-500.0,0.00013698,2]
[351902540,1738833040971,-627.69,0.00013698,2]
[351902542,1738833040980,-500.0,0.00013698,2]
[351902544,1738833040989,-1180.72,0.00013698,2]
[351902546,1738833040999,-6806.43,0.00013698,2]
[351902548,1738833041009,-500.0,0.00013698,2]
[351902550,1738833041018,-2962.82,0.00013698,2]
[351902552,1738833041028,-197.073881,0.00013699,2]
[351902554,1738833041037,-426.793273,0.00013699,2]
[351902556,1738833041047,-151.44052665,0.00013699,2]
[351902558,1738833041056,-500.0,0.00013699,2]
[351902560,1738833041065,-177.88864445,0.00013699,2]
[351902562,1738833041075,-500.0,0.00013699,2]
[351902564,1738833041085,-500.0,0.00013699,2]
[351902566,1738833041094,-373.86549555,0.00013699,2]
[351902568,1738833041104,-500.0,0.00013699,2]
[351902570,1738833041113,-500.0,0.00013699,2]
[351902572,1738833041123,-500.0,0.00013699,2]
[351902574,1738833041132,-500.0,0.00013699,2]
[351902577,1738833041142,-500.0,0.00013699,2]
[351902579,1738833041151,-500.0,0.00013699,2]
[351902581,1738833041161,-500.0,0.00013699,2]
[351902583,1738833041170,-500.0,0.00013699,2]
[351902585,1738833041180,-500.0,0.00013699,2]
[351902587,1738833041190,-500.0,0.00013699,2]
[351902589,1738833041199,-500.0,0.00013699,2]
[351902591,1738833041208,-500.0,0.00013699,2]
[351902593,1738833041218,-500.0,0.00013699,2]
[351902595,1738833041227,-500.0,0.00013699,2]
[351902597,1738833041236,-500.0,0.00013834,2]
[351902599,1738833041252,-597.55005048,0.00013834,2]
[351902601,1738833041262,-168.28503533,0.00013834,2]
[351902603,1738833041273,-500.0,0.00013835,2]
[351902605,1738833041282,-500.0,0.00013835,2]
[351902607,1738833041292,-500.0,0.00013835,2]
[351902609,1738833041301,-500.0,0.00013835,2]
[351902611,1738833041311,-500.0,0.00013835,2]
[351902613,1738833041320,-500.0,0.00013835,2]
[351902615,1738833041331,-500.0,0.00013835,2]
[351902617,1738833041341,-500.0,0.00013835,2]
[351902619,1738833041350,-661.74,0.00013835,2]
[351902621,1738833041359,-500.0,0.00013835,2]
[351902623,1738833041369,-500.0,0.00013835,2]
[351902625,1738833041378,-500.0,0.00013835,2]
[351902627,1738833041387,-500.0,0.00013835,2]
[351902629,1738833041397,-500.0,0.00013835,2]
[351902630,1738833041406,-500.0,0.00013835,2]
[351902633,1738833041416,-503.98,0.00013835,2]
[351902635,1738833041426,-500.0,0.00013835,2]
[351902637,1738833041435,-500.0,0.00013835,2]
[351902638,1738833041444,-500.0,0.00013835,2]
[351902640,1738833041454,-500.0,0.00013835,2]
[351902642,1738833041463,-1081.41,0.00013835,2]
[351902644,1738833041473,-500.0,0.00013835,2]
[351902647,1738833041483,-500.0,0.00013835,2]
[351902649,1738833041493,-500.0,0.00013835,2]
[351902651,1738833041503,-500.0,0.00013835,2]
[351902653,1738833041511,-500.0,0.00013835,2]
[351902655,1738833041522,-500.0,0.00013835,2]
[351902657,1738833041531,-500.0,0.00013835,2]
[351902659,1738833041544,-500.0,0.00013835,2]
[351902661,1738833041553,-500.0,0.00013835,2]
[351902663,1738833041562,-500.0,0.00013835,2]
[351902665,1738833041572,-500.0,0.00013835,2]
[351902667,1738833041582,-500.0,0.00013835,2]
[351902669,1738833041591,-500.0,0.00013835,2]
[351902671,1738833041601,-500.0,0.00013835,2]
[351902673,1738833041616,-500.0,0.00013835,2]
[351902675,1738833041629,-527.56,0.00013835,2]
[351902677,1738833041638,-500.0,0.00013835,2]
[351902679,1738833041649,-500.0,0.00013835,2]
[351902681,1738833041660,-500.0,0.00013835,2]
[351902683,1738833041670,-500.0,0.00013835,2]
[351902685,1738833041679,-1193.32,0.00013835,2]
[351902687,1738833041690,-500.0,0.00013835,2]
[351902689,1738833041703,-547.96657509,0.00013835,2]
[351902691,1738833041711,-500.0,0.00013835,2]
[351902693,1738833041722,-1167.66,0.00013835,2]
[351902695,1738833041731,-500.0,0.00013835,2]
[351902697,1738833041741,-659.31,0.00013835,2]
[351902699,1738833041750,-500.0,0.00013835,2]
[351902701,1738833041760,-500.0,0.00013835,2]
[351902703,1738833041769,-500.0,0.00013835,2]
[351902705,1738833041779,-500.0,0.00013835,2]
[351902707,1738833041788,-500.0,0.00013835,2]
[351902709,1738833041798,-500.0,0.00013835,2]
[351902711,1738833041808,-536.16,0.00013835,2]
[351902713,1738833041817,-500.0,0.00013835,2]
[351902715,1738833041826,-340.67054355,0.00013835,2]
[351902717,1738833041836,-500.0,0.00013835,2]
[351902719,1738833041845,-500.0,0.00013835,2]
[351902721,1738833041855,-500.0,0.00013835,2]
[351902723,1738833041864,-500.0,0.00013835,2]
[351902725,1738833041874,-500.0,0.00013835,2]
[351902727,1738833041884,-500.0,0.00013835,2]
[351902729,1738833041894,-500.42,0.00013835,2]
[351902731,1738833041903,-785.12,0.00013835,2]
[351902733,1738833041912,-500.0,0.00013835,2]
[351902735,1738833041922,-500.0,0.00013835,2]
[351902737,1738833041931,-500.0,0.00013835,2]
[351902739,1738833041941,-1246.55,0.00013835,2]
[351902741,1738833041950,-500.0,0.00013835,2]
[351902743,1738833041959,-276.21092118,0.00013835,2]
[351902745,1738833041969,-500.0,0.00013835,2]
[351902747,1738833041978,-500.0,0.00013835,2]
[351902749,1738833041987,-500.0,0.00013835,2]
[351902751,1738833041997,-500.0,0.00013835,2]
[351902753,1738833042007,-500.0,0.00013835,2]
[351902755,1738833042017,-500.0,0.00013835,2]
[351902758,1738833042027,-535.66,0.00013835,2]
[351902760,1738833042037,-500.0,0.00013835,2]
[351902762,1738833042047,-500.0,0.00013835,2]
[351902764,1738833042056,-500.0,0.00013835,2]
[351902766,1738833042065,-1281.54,0.00013835,2]
[351902768,1738833042075,-202.2442338,0.00013835,2]
[351902770,1738833042083,-500.0,0.00013835,2]
[351902772,1738833042093,-500.0,0.00013835,2]
[351902774,1738833042102,-243.74158017,0.00013835,2]
[351902776,1738833042112,-500.0,0.00013835,2]
[351902778,1738833042121,-500.0,0.00013835,2]
[351902780,1738833042130,-500.0,0.00013835,2]
[351902782,1738833042140,-937.21,0.00013835,2]
[351902784,1738833042149,-574.09,0.00013835,2]
[351902786,1738833042159,-500.0,0.00013835,2]
[351902788,1738833042168,-500.0,0.00013835,2]
[351902790,1738833042177,-551.09,0.00013835,2]
[351902792,1738833042188,-500.0,0.00013835,2]
[351902794,1738833042197,-512.72,0.00013835,2]
[351902796,1738833042206,-500.0,0.00013835,2]
[351902798,1738833042216,-500.0,0.00013835,2]
[351902800,1738833042225,-500.0,0.00013835,2]
[351902802,1738833042234,-500.0,0.00013835,2]
[351902804,1738833042244,-500.0,0.00013835,2]
[351902806,1738833042253,-500.0,0.00013835,2]
[351902808,1738833042262,-500.0,0.00013835,2]
[351902810,1738833042273,-500.0,0.00013835,2]
[351902812,1738833042283,-730.03,0.00013835,2]
[351902814,1738833042292,-500.0,0.00013835,2]
[351902816,1738833042301,-500.0,0.00013835,2]
[351902818,1738833042311,-500.0,0.00013835,2]
[351902820,1738833042320,-1183.53,0.00013835,2]
[351902822,1738833042330,-1732.17,0.00013835,2]
[351902824,1738833042340,-500.0,0.00013835,2]
[351902826,1738833042349,-500.0,0.00013835,2]
[351902828,1738833042358,-500.0,0.00013835,2]
[351902830,1738833042367,-500.0,0.00013835,2]
[351902832,1738833042376,-681.46,0.00013835,2]
[351902834,1738833042386,-500.0,0.00013835,2]
[351902836,1738833042395,-1080.42,0.00013835,2]
[351902838,1738833042404,-500.0,0.00013835,2]
[351902840,1738833042413,-500.0,0.00013835,2]
[351902842,1738833042423,-500.0,0.00013835,2]
[351902844,1738833042432,-500.0,0.00013835,2]
[351902846,1738833042441,-500.0,0.00013835,2]
[351902848,1738833042450,-35872.88,0.00013835,2]
[351902850,1738833042460,-500.0,0.00013835,2]
[351902852,1738833042469,-500.0,0.00013835,2]
[351902854,1738833042478,-500.0,0.00013835,2]
[351902856,1738833042487,-500.0,0.00013835,2]
[351902858,1738833042496,-14650.96,0.00013835,2]
[351902860,1738833042505,-500.0,0.00013835,2]
[351902862,1738833042514,-1410.09,0.00013835,2]
[351902864,1738833042525,-5062.88,0.00013835,2]
[351902866,1738833042537,-1133.82,0.00013835,2]
[351902868,1738833042549,-500.0,0.00013835,2]
[351902870,1738833042558,-1861.9,0.00013835,2]
[351902872,1738833042567,-3452.74,0.00013835,2]
[351902874,1738833042578,-500.0,0.00013835,2]
[351902876,1738833042588,-1496.04,0.00013835,2]
[351902878,1738833042597,-167.35093382,0.00013835,2]
[351902880,1738833042606,-732.12,0.00013835,2]
[351902883,1738833042616,-1819.26,0.00013835,2]
[351902885,1738833042625,-500.0,0.00013835,2]
[351902888,1738833042635,-500.0,0.00013835,2]
[351902890,1738833042644,-1746.2,0.00013835,2]
[351902892,1738833042654,-1155.84,0.00013835,2]
[351902894,1738833042663,-500.0,0.00013835,2]
[351902895,1738833042672,-500.0,0.00013835,2]
[351902897,1738833042684,-500.0,0.00013835,2]
[351902899,1738833042694,-519.23141477,0.00013835,2]
[351902901,1738833042703,-500.0,0.00013835,2]
[351902903,1738833042715,-839.56,0.00013835,2]
[351902905,1738833042728,-520.1,0.00013835,2]
[351902907,1738833042739,-500.0,0.00013835,2]
[351902909,1738833042749,-633.72,0.00013835,2]
[351902912,1738833042760,-1364.39,0.00013835,2]
[351902915,1738833042769,-500.0,0.00013835,2]
[351902917,1738833042780,-500.0,0.00013835,2]
[351902919,1738833042789,-500.0,0.00013835,2]
[351902922,1738833042798,-500.0,0.00013835,2]
[351902924,1738833042807,-500.0,0.00013835,2]
[351902926,1738833042817,-2017.46,0.00013835,2]
[351902928,1738833042826,-500.0,0.00013835,2]
[351902930,1738833042836,-607.83,0.00013835,2]
[351902932,1738833042845,-500.0,0.00013835,2]
[351902934,1738833042855,-2631.99,0.00013835,2]
[351902936,1738833042864,-8241.48,0.00013835,2]
[351902938,1738833042873,-500.0,0.00013835,2]
[351902940,1738833042883,-500.0,0.00013835,2]
[351902943,1738833042894,-500.0,0.00013835,2]
[351902946,1738833042903,-1516.77,0.00013835,2]
[351902949,1738833042912,-500.0,0.00013835,2]
[351902952,1738833042921,-500.0,0.00013835,2]
[351902954,1738833042931,-3042.29,0.00013835,2]
[351902956,1738833042941,-500.0,0.00013835,2]
[351902958,1738833042950,-3774.71,0.00013835,2]
[351902961,1738833042960,-583.77995965,0.00013835,2]
[351902963,1738833042969,-500.0,0.00013835,2]
[351902965,1738833042979,-646.7,0.00013835,2]
[351902967,1738833042989,-2714.94,0.00013835,2]
[351902970,1738833043000,-687.46,0.00013835,2]
[351902971,1738833043010,-1212.68,0.00013835,2]
[351902974,1738833043022,-500.0,0.00013835,2]
[351902975,1738833043031,-500.0,0.00013835,2]
[351902977,1738833043041,-500.0,0.00013835,2]
[351902980,1738833043051,-500.0,0.00013835,2]
[351902982,1738833043060,-500.0,0.00013835,2]
[351902984,1738833043070,-1500.65,0.00013835,2]
[351902986,1738833043079,-500.0,0.00013835,2]
[351902988,1738833043088,-1456.61,0.00013835,2]
[351902990,1738833043097,-500.0,0.00013835,2]
[351902992,1738833043106,-500.0,0.00013835,2]
[351902994,1738833043116,-1058.45,0.00013835,2]
[351902996,1738833043125,-500.0,0.00013835,2]
[351902998,1738833043134,-500.0,0.00013835,2]
[351903000,1738833043143,-669.86,0.00013835,2]
[351903002,1738833043152,-698.27,0.00013835,2]
[351903004,1738833043161,-11989.68,0.00013835,2]
[351903006,1738833043170,-500.0,0.00013835,2]
[351903008,1738833043180,-584.21,0.00013835,2]
[351903010,1738833043189,-708.6,0.00013835,2]
[351903012,1738833043198,-500.0,0.00013835,2]
[351903014,1738833043207,-500.0,0.00013835,2]
[351903015,1738833043216,-500.0,0.00013835,2]
[351903016,1738833043225,-1222.01,0.00013835,2]
[351903017,1738833043235,-642.47,0.00013835,2]
[351903018,1738833043244,-500.0,0.00013835,2]
[351903019,1738833043253,-980.3,0.00013835,2]
[351903020,1738833043262,-500.0,0.00013835,2]
[351903021,1738833043272,-500.0,0.00013835,2]
[351903022,1738833043281,-2948.63,0.00013835,2]
[351903023,1738833043291,-562.56,0.00013835,2]
[351903024,1738833043300,-500.0,0.00013835,2]
[351903025,1738833043309,-627.69,0.00013835,2]
[351903026,1738833043318,-500.0,0.00013835,2]
[351903027,1738833043328,-1180.72,0.00013835,2]
[351903028,1738833043337,-6806.43,0.00013835,2]
[351903030,1738833043347,-2962.82,0.00013835,2]
[351903031,1738833043356,-786.57901748,0.00013955,2]
[351903033,1738833043365,-500.0,0.00013972,2]
[351903035,1738833043374,-500.0,0.00013972,2]
[351903037,1738833043384,-500.0,0.00013972,2]
[351903039,1738833043394,-500.0,0.00013972,2]
[351903041,1738833043403,-500.0,0.00013972,2]
[351903043,1738833043412,-661.74,0.00013972,2]
[351903045,1738833043422,-500.0,0.00013972,2]
[351903047,1738833043431,-358.66464381,0.00013972,2]
[351903049,1738833043440,-500.0,0.00013972,2]
[351903051,1738833043449,-500.0,0.00013972,2]
[351903053,1738833043459,-167.3,0.00013972,2]
[351903055,1738833043469,-500.0,0.00013972,2]
[351903058,1738833043500,-500.0,0.00013972,2]
[351903062,1738833043511,-1081.41,0.00013972,2]
[351903064,1738833043521,-500.0,0.00013972,2]
[351903066,1738833043531,-500.0,0.00013972,2]
[351903067,1738833043543,-500.0,0.00013972,2]
[351903070,1738833043553,-500.0,0.00013972,2]
[351903073,1738833043564,-500.0,0.00013972,2]
[351903075,1738833043573,-500.0,0.00013972,2]
[351903077,1738833043584,-500.0,0.00013972,2]
[351903079,1738833043594,-500.0,0.00013972,2]
[351903081,1738833043604,-500.0,0.00013972,2]
[351903083,1738833043614,-510.92,0.00013972,2]
[351903085,1738833043623,-500.0,0.00013972,2]
[351903087,1738833043632,-500.0,0.00013972,2]
[351903089,1738833043641,-500.0,0.00013972,2]
[351903091,1738833043651,-500.0,0.00013972,2]
[351903092,1738833043660,-455.48528004,0.00013972,2]
[351903094,1738833043670,-500.0,0.00013972,2]
[351903096,1738833043679,-500.0,0.00013972,2]
[351903098,1738833043688,-500.0,0.00013972,2]
[351903100,1738833043697,-1193.32,0.00013972,2]
[351903102,1738833043707,-500.0,0.00013972,2]
[351903104,1738833043717,-500.0,0.00013972,2]
[351903106,1738833043726,-1167.66,0.00013972,2]
[351903108,1738833043736,-487.24118303,0.00013972,2]
[351903110,1738833043746,-659.31,0.00013972,2]
[351903113,1738833043756,-500.0,0.00013972,2]
[351903115,1738833043766,-500.0,0.00013972,2]
[351903117,1738833043778,-500.0,0.00013972,2]
[351903119,1738833043788,-500.0,0.00013972,2]
[351903121,1738833043798,-500.0,0.00013972,2]
[351903123,1738833043807,-500.0,0.00013972,2]
[351903124,1738833043817,-536.16,0.00013972,2]
[351903126,1738833043827,-500.0,0.00013972,2]
[351903128,1738833043837,-500.0,0.00013972,2]
[351903130,1738833043846,-500.0,0.00013972,2]
[351903132,1738833043856,-500.0,0.00013972,2]
[351903134,1738833043865,-500.0,0.00013972,2]
[351903136,1738833043875,-389.54491019,0.00013972,2]
[351903138,1738833043884,-785.12,0.00013972,2]
[351903140,1738833043894,-500.0,0.00013972,2]
[351903142,1738833043903,-1246.55,0.00013972,2]
[351903144,1738833043913,-500.0,0.00013972,2]
[351903146,1738833043922,-500.0,0.00013972,2]
[351903148,1738833043931,-535.66,0.00013972,2]
[351903150,1738833043941,-500.0,0.00013972,2]
[351903152,1738833043950,-348.34667853,0.00013972,2]
[351903154,1738833043959,-1281.54,0.00013972,2]
[351903156,1738833043968,-316.13356998,0.00013972,2]
[351903158,1738833043978,-500.0,0.00013972,2]
[351903160,1738833043987,-500.0,0.00013972,2]
[351903162,1738833043996,-500.0,0.00013972,2]
[351903164,1738833044005,-937.21,0.00013972,2]
[351903166,1738833044014,-574.09,0.00013972,2]
[351903168,1738833044025,-500.0,0.00013972,2]
[351903170,1738833044034,-500.0,0.00013972,2]
[351903172,1738833044044,-551.09,0.00013972,2]
[351903174,1738833044053,-512.72,0.00013972,2]
[351903176,1738833044063,-500.0,0.00013972,2]
[351903178,1738833044073,-550.98548026,0.00013972,2]
[351903180,1738833044082,-500.0,0.00013972,2]